bitfinex/quotes_BTCUSD_20220120
["timestamp","ask_amount","ask_price","bid_price","bid_amount"]
[1642642707553,0.05999855,41730.0,41725.0,0.06727817]
[1642642707760,0.05999855,41730.0,41725.0,0.005]
[1642642707954,0.30358332,41730.0,41725.0,0.055]
[1642642708155,0.05999855,41730.0,41725.0,0.005]
[1642642708356,0.06121444,41730.0,41725.0,0.005]
[1642642708957,0.06121444,41730.0,41723.0,0.26019031]
[1642642709157,0.06121444,41730.0,41726.0,0.059923]
[1642642709357,0.05999855,41730.0,41726.0,0.0670634]
[1642642709556,0.06121444,41730.0,41726.0,0.05]
[1642642709759,0.07321444,41730.0,41727.0,0.059922]
[1642642710211,0.07321444,41730.0,41727.0,0.12757772]
[1642642710414,0.01207655,41730.0,41728.0,0.06149909]
[1642642710611,0.01207655,41730.0,41729.0,0.00759411]
[1642642711010,7.655e-05,41730.0,41729.0,0.00759411]
[1642642711208,7.655e-05,41730.0,41729.0,0.00571861]
[1642642711409,7.655e-05,41730.0,41728.0,0.05392463]
[1642642711809,7.655e-05,41730.0,41728.0,0.11384063]
[1642642713212,7.655e-05,41730.0,41729.0,0.28506907]
[1642642713416,7.655e-05,41730.0,41729.0,0.35931864]
[1642642713612,7.655e-05,41730.0,41729.0,0.40931864]
[1642642715674,7.655e-05,41730.0,41729.0,0.41631864]
[1642642716871,7.655e-05,41730.0,41729.0,0.40931864]
[1642642717709,7.655e-05,41730.0,41729.0,0.41631864]
[1642642718714,7.655e-05,41730.0,41729.0,0.83925845]
[1642642718911,7.655e-05,41730.0,41729.0,0.83225845]
[1642642719112,7.655e-05,41730.0,41729.0,1.43925981]
[1642642719313,0.00121587,41732.0,41731.0,0.00123305]
[1642642719513,0.00121587,41732.0,41731.0,1.42485646]
[1642642719713,0.00121587,41732.0,41731.0,1.47485646]
[1642642719915,0.00121587,41732.0,41731.0,1.0988035]
[1642642720115,0.5,41738.0,41731.0,0.9488035]
[1642642720313,0.00121584,41734.0,41732.0,0.059909]
[1642642720714,0.00121584,41734.0,41732.0,0.119822]
[1642642720918,0.06113084,41734.0,41733.0,0.05391726]
[1642642721115,0.06113084,41734.0,41733.0,0.10391726]
[1642642721364,0.05998376,41734.0,41733.0,0.10391726]
[1642642721765,0.05998376,41734.0,41733.0,0.10991726]
[1642642722162,6.876e-05,41734.0,41733.0,0.10991726]
[1642642722364,6.876e-05,41734.0,41733.0,0.39395282]
[1642642722565,6.876e-05,41734.0,41733.0,0.47279268]
[1642642722763,6.876e-05,41734.0,41733.0,0.80955968]
[1642642722962,4.1e-06,41734.0,41733.0,0.80955968]
[1642642723163,4.1e-06,41734.0,41733.0,0.80355968]
[1642642723762,4.1e-06,41734.0,41733.0,0.82555968]
[1642642724365,4.1e-06,41734.0,41733.0,0.54030426]
[1642642724867,4.1e-06,41734.0,41733.0,0.486387]
[1642642725110,4.1e-06,41734.0,41733.0,0.464387]
[1642642725307,4.1e-06,41734.0,41733.0,0.07762]
[1642642725707,4.1e-06,41734.0,41733.0,0.08762]
[1642642726908,4.1e-06,41734.0,41733.0,0.07762]
[1642642727707,4.1e-06,41734.0,41733.0,0.09262]
[1642642727908,4.1e-06,41734.0,41733.0,0.065]
[1642642728308,4.1e-06,41734.0,41733.0,0.015]
[1642642728959,4.1e-06,41734.0,41731.0,0.059916]
[1642642729559,4.1e-06,41734.0,41731.0,0.119833]
[1642642729758,4.1e-06,41734.0,41731.0,0.128833]
[1642642729959,4.1e-06,41734.0,41732.0,0.05]
[1642642730359,4.1e-06,41734.0,41733.0,0.18649907]
[1642642733808,0.0480041,41734.0,41733.0,0.18649907]
[1642642735008,4.1e-06,41734.0,41733.0,0.18649907]
[1642642735711,0.0550041,41734.0,41733.0,0.18649907]
[1642642736955,4.1e-06,41734.0,41733.0,0.18649907]
[1642642737756,0.0490041,41734.0,41733.0,0.18749907]
[1642642738958,4.1e-06,41734.0,41733.0,0.18649907]
[1642642739161,4.1e-06,41734.0,41733.0,0.48311676]
[1642642739558,4.1e-06,41734.0,41733.0,0.86988376]
[1642642739761,4.1e-06,41734.0,41733.0,0.87888376]
[1642642741013,4.1e-06,41734.0,41733.0,0.86988376]
[1642642741216,4.1e-06,41734.0,41733.0,0.57326607]
[1642642741823,4.1e-06,41734.0,41733.0,0.58126607]
[1642642743016,4.1e-06,41734.0,41732.0,0.10391809]
[1642642743856,4.1e-06,41734.0,41732.0,0.11191809]
[1642642744058,4.1e-06,41734.0,41733.0,0.059901]
[1642642744260,4.1e-06,41734.0,41733.0,0.73238078]
[1642642744461,4.1e-06,41734.0,41733.0,0.97647975]
[1642642745057,4.1e-06,41734.0,41733.0,0.91657875]
[1642642745460,4.1e-06,41734.0,41733.0,0.63086597]
[1642642745860,4.1e-06,41734.0,41733.0,0.63886597]
[1642642747063,4.1e-06,41734.0,41733.0,0.63086597]
[1642642747705,4.1e-06,41734.0,41733.0,0.63886597]
[1642642748505,4.1e-06,41734.0,41733.0,0.394767]
[1642642748706,4.1e-06,41734.0,41733.0,0.008]
[1642642749106,4.1e-06,41734.0,41732.0,0.05]
[1642642749907,4.1e-06,41734.0,41732.0,0.052]
[1642642750107,0.0599181,41734.0,41733.0,0.21381734]
[1642642751759,0.0599181,41734.0,41733.0,0.21481734]
[1642642752960,0.0599181,41734.0,41733.0,0.21381734]
[1642642753860,0.35369757,41734.0,41733.0,0.001]
[1642642754069,0.10906842,41734.0,41733.0,0.001]
[1642642755009,0.1078181,41734.0,41730.0,0.059917]
[1642642755208,0.058915,41733.0,41730.0,0.059917]
[1642642755510,0.0479041,41734.0,41731.0,0.059915]
[1642642755511,0.0479,41732.0,41731.0,0.059915]
[1642642756607,0.0479,41732.0,41731.0,0.24603477]
[1642642757613,0.00121994,41734.0,41731.0,0.24603477]
[1642642757810,0.00121994,41734.0,41732.0,0.05391261]
[1642642758008,0.00121994,41734.0,41732.0,0.16381461]
[1642642758409,4.1e-06,41734.0,41732.0,0.16381461]
[1642642759858,4.1e-06,41734.0,41732.0,0.17589542]
[1642642760058,4.1e-06,41734.0,41733.0,0.00757555]
[1642642760264,4.1e-06,41734.0,41732.0,0.16881461]
[1642642760859,4.1e-06,41734.0,41732.0,0.114902]
[1642642761059,4.1e-06,41734.0,41732.0,0.109902]
[1642642761859,4.1e-06,41734.0,41732.0,0.117902]
[1642642763110,4.1e-06,41734.0,41732.0,0.109902]
[1642642763111,0.0599141,41734.0,41732.0,0.109902]
[1642642763711,0.0599141,41734.0,41732.0,0.117902]
[1642642764212,0.00121582,41735.0,41733.0,0.6]
[1642642764413,0.5,41738.0,41733.0,0.719798]
[1642642764612,0.5,41738.0,41734.0,0.1099]
[1642642764613,0.00121582,41735.0,41734.0,0.1099]
[1642642765615,0.5,41738.0,41734.0,0.62189]
[1642642765817,0.0012158,41737.0,41735.0,0.11380573]
[1642642766017,0.0012158,41737.0,41735.0,0.16380573]
[1642642766859,0.5,41738.0,41735.0,0.16380573]
[1642642767059,0.50121578,41738.0,41736.0,0.059899]
[1642642767860,0.50121578,41738.0,41736.0,0.061899]
[1642642768064,0.5,41738.0,41736.0,0.061899]
[1642642769661,0.5,41738.0,41736.0,0.059899]
[1642642769861,0.5,41738.0,41736.0,0.062899]
[1642642770311,0.5,41738.0,41737.0,0.0060502]
[1642642770512,0.16155035,41738.0,41737.0,0.8456502]
[1642642770718,0.16155035,41738.0,41737.0,1.54659871]
[1642642770719,0.16161911,41738.0,41737.0,1.54659871]
[1642642771013,0.16161911,41738.0,41737.0,1.37762545]
[1642642771809,0.16161911,41738.0,41737.0,0.60362545]
[1642642772711,0.16161911,41738.0,41737.0,0.91171847]
[1642642773010,0.16161911,41738.0,41737.0,0.79972847]
[1642642773415,0.16161911,41738.0,41737.0,0.440377]
[1642642773610,0.16161911,41738.0,41737.0,0.02761]
[1642642773878,0.16161911,41738.0,41737.0,0.07161]
[1642642775178,0.16161911,41738.0,41737.0,0.02761]
[1642642775777,0.17061911,41738.0,41737.0,0.05261]
[1642642775981,0.17061911,41738.0,41737.0,0.10261]
[1642642777179,0.16161911,41738.0,41737.0,0.07761]
[1642642777616,0.16161911,41738.0,41737.0,0.02761]
[1642642777812,0.16661911,41738.0,41737.0,0.05661]
[1642642779114,0.16661911,41738.0,41737.0,0.02761]
[1642642779115,0.16161911,41738.0,41737.0,0.02761]
[1642642779814,0.18861911,41738.0,41737.0,0.02761]
[1642642781026,0.16161911,41738.0,41737.0,0.02761]
[1642642781867,0.21961911,41738.0,41737.0,0.02761]
[1642642783171,0.16161911,41738.0,41737.0,0.02761]
[1642642783972,0.21961911,41738.0,41737.0,0.02761]
[1642642785211,0.16161911,41738.0,41737.0,0.02761]
[1642642785811,0.18561911,41738.0,41737.0,0.02761]
[1642642787212,0.16161911,41738.0,41737.0,0.02761]
[1642642787913,0.21861911,41738.0,41737.0,0.02761]
[1642642789159,0.16161911,41738.0,41737.0,0.02761]
[1642642789957,0.18561911,41738.0,41737.0,0.02761]
[1642642791162,0.16161911,41738.0,41737.0,0.07761]
[1642642791366,0.16161911,41738.0,41737.0,0.02761]
[1642642791960,0.18061911,41738.0,41737.0,0.02761]
[1642642793212,0.16161911,41738.0,41737.0,0.02761]
[1642642793815,0.18161911,41738.0,41737.0,0.02761]
[1642642795116,0.18161911,41738.0,41737.0,0.07761]
[1642642795315,0.16161911,41738.0,41737.0,0.07761]
[1642642795514,0.16161911,41738.0,41737.0,0.02761]
[1642642795916,0.20561911,41738.0,41737.0,0.08261]
[1642642796360,0.20561911,41738.0,41737.0,0.03261]
[1642642796758,0.20561911,41738.0,41737.0,0.08261]
[1642642796961,1.0741066,41746.0,41738.0,0.55646053]
[1642642797160,0.00121576,41740.0,41739.0,0.17950405]
[1642642797360,0.00121576,41740.0,41739.0,0.22368346]
[1642642797559,0.00121576,41740.0,41739.0,0.22880998]
[1642642797761,0.00121576,41740.0,41739.0,0.86100529]
[1642642797959,0.00121576,41740.0,41739.0,0.69033762]
[1642642798160,0.059898,41743.0,41739.0,0.74365698]
[1642642798359,0.00121573,41742.0,41740.0,0.059898]
[1642642798559,0.00128449,41742.0,41740.0,0.059898]
[1642642798758,0.00128449,41742.0,41740.0,0.109898]
[1642642799361,6.876e-05,41742.0,41740.0,0.109898]
[1642642799761,6.876e-05,41742.0,41741.0,0.28523126]
[1642642800308,0.41628448,41746.0,41742.0,0.059895]
[1642642801103,0.41628448,41746.0,41743.0,0.28269918]
[1642642801304,0.41628448,41746.0,41744.0,0.119779]
[1642642802005,0.41628448,41746.0,41744.0,0.124779]
[1642642803005,0.47618248,41746.0,41744.0,0.124779]
[1642642803304,0.47618248,41746.0,41744.0,0.119779]
[1642642803507,0.41628448,41746.0,41744.0,0.119779]
[1642642804063,0.41628448,41746.0,41744.0,0.124779]
[1642642804265,0.41628448,41746.0,41745.0,0.29137257]
[1642642804468,0.41628448,41746.0,41745.0,0.34137257]
[1642642804665,0.38592662,41746.0,41745.0,0.84137257]
[1642642804865,0.00121566,41747.0,41746.0,0.6]
[1642642805068,0.00121566,41747.0,41746.0,0.65988]
[1642642805267,0.9812,41753.0,41746.0,0.05988]
[1642642805465,0.00121564,41749.0,41746.0,0.51686212]
[1642642805665,0.00121564,41749.0,41747.0,0.059881]
[1642642805864,0.00121564,41749.0,41747.0,0.109881]
[1642642806065,0.00121564,41749.0,41747.0,0.169762]
[1642642806265,0.00121564,41749.0,41748.0,0.23664768]
[1642642806465,0.00010315,41752.0,41748.0,0.23664768]
[1642642806664,0.00121562,41750.0,41748.0,0.23664768]
[1642642807506,0.00121562,41750.0,41748.0,0.29653268]
[1642642807705,8.595e-05,41751.0,41748.0,0.29653268]
[1642642807907,0.00130156,41751.0,41748.0,0.30653268]
[1642642808108,6.876e-05,41750.0,41749.0,0.059886]
[1642642810009,6.876e-05,41750.0,41749.0,0.066886]
[1642642811263,6.876e-05,41750.0,41749.0,0.059886]
[1642642811962,6.876e-05,41750.0,41749.0,0.062886]
[1642642813162,6.876e-05,41750.0,41749.0,0.059886]
[1642642814065,6.876e-05,41750.0,41749.0,0.062886]
[1642642814871,0.29214153,41750.0,41749.0,0.062886]
[1642642815125,0.29214153,41750.0,41746.0,0.27609028]
[1642642815126,1.04004153,41750.0,41746.0,0.27609028]
[1642642815321,0.0012675,41748.0,41737.0,0.02887715]
[1642642815621,0.0479,41747.0,41738.0,0.00013752]
[1642642815823,0.10780425,41747.0,41738.0,0.00013752]
[1642642816123,0.3377651,41742.0,41738.0,0.00013752]
[1642642816321,0.3377651,41742.0,41741.0,0.26734913]
[1642642816522,0.3856651,41742.0,41741.0,0.26734913]
[1642642816820,0.3856651,41742.0,41741.0,0.26743508]
[1642642817022,1.06539612,41742.0,41741.0,0.26743508]
[1642642817224,1.41437179,41742.0,41741.0,0.26743508]
[1642642818123,0.92537179,41742.0,41741.0,0.26743508]
[1642642818422,0.58760669,41742.0,41741.0,0.26743508]
[1642642819261,0.57660669,41742.0,41741.0,0.26743508]
[1642642819960,0.58760669,41742.0,41741.0,0.26743508]
[1642642821259,0.57660669,41742.0,41741.0,0.26743508]
[1642642821860,0.92660669,41742.0,41741.0,0.26743508]
[1642642822062,0.93960669,41742.0,41741.0,0.26743508]
[1642642822517,1.00436978,41742.0,41741.0,8.595e-05]
[1642642822717,4.10792694,41742.0,41741.0,8.595e-05]
[1642642822918,0.059923,41740.0,41733.0,0.00022347]
[1642642823117,1.32349954,41734.0,41733.0,0.00022347]
[1642642823319,1.37139954,41734.0,41733.0,0.00022347]
[1642642823716,1.37139954,41734.0,41732.0,0.00098803]
[1642642823920,1.30100327,41733.0,41732.0,0.00098803]
[1642642824221,0.95,41732.0,41728.0,0.05045245]
[1642642824422,0.0012085,41720.0,41707.0,0.0011]
[1642642824625,0.0479,41719.0,41707.0,0.0011]
[1642642824827,0.34004893,41708.0,41707.0,0.0011]
[1642642825019,0.51605493,41708.0,41707.0,0.0011]
[1642642825219,0.51605493,41708.0,41707.0,0.00177041]
[1642642825622,0.51728955,41708.0,41707.0,0.00177041]
[1642642826018,0.52628955,41708.0,41707.0,0.00177041]
[1642642826662,0.8501458,41708.0,41707.0,0.00177041]
[1642642827064,0.18624062,41708.0,41707.0,0.00177041]
[1642642827264,0.0479,41708.0,41707.0,0.00177041]
[1642642828064,0.0529,41708.0,41707.0,0.26152074]
[1642642828465,0.0529,41708.0,41707.0,0.51550527]
[1642642829466,0.0479,41708.0,41707.0,0.51550527]
[1642642830124,0.0489,41708.0,41707.0,0.51550527]
[1642642831321,0.0479,41708.0,41707.0,0.51550527]
[1642642833124,0.0479,41708.0,41707.0,0.31152074]
[1642642833324,0.0479,41708.0,41707.0,0.05177041]
[1642642833525,0.0479,41708.0,41707.0,0.00177041]
[1642642833958,0.0489,41708.0,41707.0,0.00177041]
[1642642834860,0.108852,41708.0,41707.0,0.00177041]
[1642642835459,0.107852,41708.0,41707.0,0.00177041]
[1642642836060,0.41005659,41708.0,41707.0,0.00177041]
[1642642836462,0.111852,41708.0,41707.0,0.00177041]
[1642642837260,0.107852,41708.0,41707.0,0.00177041]
[1642642837714,0.40016733,41708.0,41707.0,0.00177041]
[1642642838115,0.40316733,41708.0,41707.0,0.00177041]
[1642642838517,0.47363733,41708.0,41707.0,0.00177041]
[1642642838716,1.27487413,41708.0,41707.0,0.00177041]
[1642642838921,0.9,41706.0,41705.0,0.001]
[1642642839115,0.9,41706.0,41705.0,0.00198014]
[1642642839116,1.46989458,41706.0,41705.0,0.00198014]
[1642642839713,1.41989458,41706.0,41705.0,0.00198014]
[1642642840114,1.43089458,41706.0,41705.0,0.001]
[1642642840520,0.53089458,41706.0,41705.0,0.001]
[1642642840919,0.12009571,41706.0,41705.0,0.001]
[1642642841364,0.10909571,41706.0,41705.0,0.001]
[1642642841760,0.15909571,41706.0,41705.0,0.001]
[1642642841961,0.09912514,41706.0,41705.0,0.001]
[1642642842161,0.11012514,41706.0,41705.0,0.001]
[1642642845828,0.10908212,41706.0,41705.0,0.001]
[1642642846025,0.06012514,41706.0,41705.0,0.001]
[1642642846227,0.0589,41706.0,41705.0,0.001]
[1642642847126,0.0589,41706.0,41703.0,0.00098022]
[1642642847325,0.0589,41706.0,41702.0,0.0032]
[1642642847326,0.059956,41705.0,41702.0,0.0032]
[1642642847526,0.059956,41705.0,41703.0,0.00098022]
[1642642847730,0.059956,41705.0,41703.0,0.00104898]
[1642642847929,0.0479,41704.0,41703.0,0.00104898]
[1642642848629,0.0479,41704.0,41703.0,6.876e-05]
[1642642848878,0.36839714,41704.0,41703.0,6.876e-05]
[1642642850082,0.38039714,41704.0,41703.0,6.876e-05]
[1642642850885,0.0599,41704.0,41703.0,6.876e-05]
[1642642851088,0.012,41704.0,41703.0,6.876e-05]
[1642642851486,0.93832298,41713.0,41703.0,0.32874537]
[1642642851886,8.595e-05,41712.0,41703.0,0.05006876]
[1642642852085,8.595e-05,41712.0,41708.0,0.22767045]
[1642642852286,6.876e-05,41711.0,41708.0,0.22767045]
[1642642853532,6.876e-05,41711.0,41708.0,0.33761545]
[1642642854131,0.00506876,41711.0,41709.0,0.39208678]
[1642642854332,0.00506876,41711.0,41710.0,1.2996926]
[1642642854531,0.00506876,41711.0,41710.0,1.83019122]
[1642642855133,0.00506876,41711.0,41710.0,1.89011822]
[1642642855931,6.876e-05,41711.0,41710.0,1.89011822]
[1642642856132,6.876e-05,41711.0,41710.0,1.89266827]
[1642642856978,6.876e-05,41711.0,41710.0,1.79266827]
[1642642857179,6.876e-05,41711.0,41710.0,1.73274127]
[1642642857579,6.876e-05,41711.0,41710.0,0.78274127]
[1642642858181,6.876e-05,41711.0,41710.0,0.80374127]
[1642642858383,6.876e-05,41711.0,41710.0,0.46031705]
[1642642858583,6.876e-05,41711.0,41710.0,0.07355005]
[1642642859382,6.876e-05,41711.0,41710.0,0.00255005]
[1642642860231,0.00606876,41711.0,41710.0,0.00255005]
[1642642861026,0.00606876,41711.0,41708.0,0.23120053]
[1642642861228,0.11990129,41710.0,41708.0,0.00353008]
[1642642861828,0.11990129,41710.0,41708.0,0.00255005]
[1642642862329,0.12190129,41710.0,41708.0,0.00255005]
[1642642862529,0.119906,41709.0,41708.0,0.00255005]
[1642642862827,0.12114213,41709.0,41708.0,0.00255005]
[1642642863428,0.57114213,41709.0,41708.0,0.00255005]
[1642642864078,0.62804213,41709.0,41708.0,0.00255005]
[1642642864877,0.17804213,41709.0,41708.0,0.00255005]
[1642642866079,0.16904213,41709.0,41708.0,0.00255005]
[1642642866280,0.12008813,41709.0,41706.0,0.00353544]
[1642642866480,0.12008813,41709.0,41706.0,0.00255533]
[1642642866681,0.12008813,41709.0,41706.0,0.00353544]
[1642642867530,0.10908813,41709.0,41706.0,0.00353544]
[1642642867730,0.10908813,41709.0,41706.0,0.00255533]
[1642642868131,0.12108813,41709.0,41706.0,0.00255533]
[1642642869133,0.12102371,41709.0,41706.0,0.00255533]
[1642642869334,0.10902371,41709.0,41706.0,0.00255533]
[1642642869538,0.107852,41709.0,41706.0,0.00255533]
[1642642869933,0.0479,41709.0,41706.0,0.06250133]
[1642642870136,0.008,41709.0,41707.0,0.28343609]
[1642642870336,0.008,41709.0,41707.0,0.5096276]
[1642642870535,0.008,41709.0,41708.0,1.00942296]
[1642642870733,0.008,41709.0,41708.0,0.69618996]
[1642642871134,0.008,41709.0,41708.0,0.69874529]
[1642642871384,6.876e-05,41711.0,41708.0,0.69874529]
[1642642871584,6.876e-05,41711.0,41709.0,0.28887124]
[1642642872584,6.876e-05,41711.0,41710.0,0.2881755]
[1642642873585,6.876e-05,41711.0,41710.0,0.3381755]
[1642642873786,6.876e-05,41711.0,41710.0,0.7249425]
[1642642873987,6.876e-05,41711.0,41710.0,0.8249425]
[1642642874187,0.87079304,41732.0,41710.0,0.8249425]
[1642642874188,0.61203428,41729.0,41715.0,0.32719647]
[1642642874387,0.61203428,41730.0,41721.0,0.05992]
[1642642874586,0.61203428,41731.0,41727.0,0.20766832]
[1642642874788,0.059919,41729.0,41727.0,0.20766832]
[1642642875236,0.059919,41729.0,41727.0,0.20864768]
[1642642875535,0.059919,41729.0,41727.0,0.00097936]
[1642642875935,1.1637457,41728.0,41727.0,0.00097936]
[1642642876136,1.1637457,41728.0,41712.0,0.29906211]
[1642642876336,0.059938,41724.0,41717.0,0.00391847]
[1642642876536,0.059938,41724.0,41720.0,0.1814282]
[1642642876735,0.00020628,41723.0,41720.0,0.1814282]
[1642642876936,0.12007628,41723.0,41720.0,0.1814282]
[1642642877135,0.00018909,41722.0,41720.0,0.1814282]
[1642642877535,0.0001719,41721.0,41720.0,0.1814282]
[1642642878137,0.0031719,41721.0,41719.0,0.33629682]
[1642642878336,0.1230509,41721.0,41719.0,0.33629682]
[1642642878536,0.00015471,41720.0,41719.0,0.33531719]
[1642642879383,0.06009471,41720.0,41719.0,0.33531719]
[1642642879581,0.06009471,41720.0,41719.0,0.56625387]
[1642642880182,0.06909471,41720.0,41719.0,0.23093668]
[1642642880783,0.06909471,41720.0,41717.0,0.00097971]
[1642642880983,0.06909471,41720.0,41714.0,0.02755]
[1642642880984,0.059941,41719.0,41714.0,0.02755]
[1642642881183,0.06007852,41719.0,41717.0,0.00097971]
[1642642881383,0.50012033,41718.0,41717.0,0.00097971]
[1642642881880,0.00012033,41718.0,41717.0,0.00097971]
[1642642882081,0.00012033,41718.0,41714.0,0.27012128]
[1642642882283,0.059939,41717.0,41715.0,0.00097978]
[1642642882533,0.06004214,41717.0,41716.0,0.20560201]
[1642642882730,0.059939,41717.0,41716.0,0.20560201]
[1642642882930,0.06004214,41717.0,41716.0,0.20560201]
[1642642883229,0.06004214,41717.0,41716.0,0.25560201]
[1642642884232,0.06104214,41717.0,41716.0,0.25560201]
[1642642885332,0.06004214,41717.0,41716.0,0.25560201]
[1642642885732,0.06004214,41717.0,41716.0,0.20560201]
[1642642886134,0.06104214,41717.0,41716.0,0.20815292]
[1642642886982,0.06104214,41717.0,41716.0,0.00255091]
[1642642886983,0.43714259,41717.0,41716.0,0.00255091]
[1642642887183,0.70082173,41717.0,41716.0,0.00255091]
[1642642887383,0.74872173,41717.0,41716.0,0.00255091]
[1642642887582,0.74772173,41717.0,41716.0,0.00255091]
[1642642887982,0.42162128,41717.0,41716.0,0.00255091]
[1642642888183,0.43362128,41717.0,41716.0,0.00247634]
[1642642888382,0.16994214,41717.0,41716.0,0.00247634]
[1642642888785,0.11994214,41717.0,41716.0,0.00247634]
[1642642889185,0.06000314,41717.0,41716.0,0.00247634]
[1642642889385,0.04800314,41717.0,41716.0,0.00247634]
[1642642889888,0.3066,41724.0,41717.0,0.3]
[1642642890141,0.3066,41724.0,41717.0,0.35]
[1642642890343,8.595e-05,41722.0,41717.0,0.35]
[1642642890739,6.876e-05,41721.0,41718.0,0.00097967]
[1642642890939,6.876e-05,41721.0,41719.0,0.059922]
[1642642891140,0.00015471,41726.0,41720.0,0.62455209]
[1642642891542,0.00013752,41725.0,41720.0,0.67455209]
[1642642891841,0.059922,41727.0,41721.0,0.18582733]
[1642642891842,0.00012033,41724.0,41721.0,0.18582733]
[1642642892040,0.00012033,41724.0,41722.0,0.059919]
[1642642892243,0.002,41725.0,41723.0,1.2880755]
[1642642892442,0.002,41725.0,41724.0,1.18115276]
[1642642892848,0.002,41725.0,41724.0,0.33115276]
[1642642893040,0.002,41725.0,41724.0,0.6384275]
[1642642893242,0.002,41725.0,41724.0,0.33115276]
[1642642893892,0.00018909,41728.0,41724.0,0.71791976]
[1642642894193,0.0001719,41727.0,41724.0,0.39506876]
[1642642894390,0.0001719,41727.0,41726.0,0.119831]
[1642642894590,0.059915,41731.0,41726.0,0.169831]
[1642642894791,0.059915,41731.0,41730.0,0.33845805]
[1642642894991,0.00024066,41731.0,41730.0,0.38845805]
[1642642895393,0.00024066,41731.0,41730.0,0.44836405]
[1642642896293,0.00024066,41731.0,41730.0,0.45236405]
[1642642897532,0.00024066,41731.0,41730.0,0.44836405]
[1642642897936,0.00024066,41731.0,41730.0,0.67379934]
[1642642898134,0.00024066,41731.0,41730.0,0.67779934]
[1642642899635,0.00024066,41731.0,41730.0,0.67379934]
[1642642900237,0.00024066,41731.0,41730.0,0.67879934]
[1642642901383,0.00024066,41731.0,41730.0,0.67379934]
[1642642902281,0.00024066,41731.0,41730.0,0.114906]
[1642642902482,0.00024066,41731.0,41730.0,0.055]
[1642642902883,0.00024066,41731.0,41730.0,0.005]
[1642642902884,0.29320315,41731.0,41730.0,0.005]
[1642642903084,0.00024066,41731.0,41730.0,0.005]
[1642642903482,0.00024066,41731.0,41728.0,0.0009793]
[1642642903680,0.00024066,41731.0,41729.0,0.17750185]
[1642642903881,0.00022347,41730.0,41729.0,0.17750185]
[1642642904082,0.00022347,41730.0,41728.0,0.0009793]
[1642642904381,0.06012828,41729.0,41728.0,0.0009793]
[1642642905032,0.06012828,41729.0,41726.0,0.059924]
[1642642905233,0.06012828,41729.0,41726.0,0.06090338]
[1642642905533,0.06011209,41728.0,41727.0,0.22554412]
[1642642906333,0.00018909,41728.0,41727.0,0.22854412]
[1642642908036,0.00018909,41728.0,41727.0,0.22554412]
[1642642908339,0.00018909,41728.0,41727.0,0.22954412]
[1642642909483,0.00018909,41728.0,41727.0,0.22554412]
[1642642909682,0.05923722,41729.0,41727.0,0.22554412]
[1642642909885,0.00128389,41738.0,41728.0,0.059914]
[1642642910283,0.00012033,41735.0,41728.0,0.059914]
[1642642910681,0.00010314,41734.0,41728.0,0.059914]
[1642642911082,8.595e-05,41733.0,41729.0,0.00097927]
[1642642911282,8.595e-05,41733.0,41730.0,0.059914]
[1642642911482,6.876e-05,41732.0,41731.0,0.32544163]
[1642642911882,6.876e-05,41732.0,41731.0,0.37544163]
[1642642912284,6.876e-05,41732.0,41731.0,0.37744163]
[1642642913536,6.876e-05,41732.0,41731.0,0.37544163]
[1642642914234,6.876e-05,41732.0,41731.0,0.37744163]
[1642642916142,6.876e-05,41732.0,41731.0,0.37544163]
[1642642916382,6.876e-05,41732.0,41731.0,0.37744163]
[1642642917583,6.876e-05,41732.0,41731.0,0.37544163]
[1642642917983,6.876e-05,41732.0,41731.0,0.32544163]
[1642642918185,6.876e-05,41732.0,41731.0,0.33144163]
[1642642919187,6.876e-05,41732.0,41731.0,0.38144163]
[1642642919585,6.876e-05,41732.0,41731.0,0.37544163]
[1642642920250,6.876e-05,41732.0,41731.0,0.33044163]
[1642642921457,6.876e-05,41732.0,41731.0,0.38044163]
[1642642921651,6.876e-05,41732.0,41731.0,0.37544163]
[1642642921852,6.876e-05,41732.0,41731.0,0.72544163]
[1642642922051,6.876e-05,41732.0,41731.0,0.37544163]
[1642642922251,6.876e-05,41732.0,41731.0,0.38144163]
[1642642922850,6.876e-05,41732.0,41731.0,0.33144163]
[1642642923550,6.876e-05,41732.0,41731.0,0.32544163]
[1642642924383,6.876e-05,41732.0,41731.0,0.33144163]
[1642642925480,6.876e-05,41732.0,41731.0,0.59374704]
[1642642925682,6.876e-05,41732.0,41731.0,1.73175815]
[1642642925879,6.876e-05,41732.0,41731.0,1.83175815]
[1642642926081,6.876e-05,41732.0,41731.0,1.84374815]
[1642642926384,6.876e-05,41732.0,41731.0,2.242853]
[1642642927536,6.876e-05,41732.0,41731.0,2.225853]
[1642642928334,6.876e-05,41732.0,41731.0,2.247853]
[1642642929336,6.876e-05,41732.0,41731.0,2.380733]
[1642642929534,6.876e-05,41732.0,41731.0,2.358733]
[1642642930337,6.876e-05,41732.0,41731.0,2.380733]
[1642642930934,6.876e-05,41732.0,41731.0,2.41647487]
[1642642931135,6.876e-05,41732.0,41731.0,2.30566002]
[1642642931136,8.76e-06,41732.0,41731.0,2.30566002]
[1642642931396,3.14961312,41753.0,41741.0,0.00123121]
[1642642931397,2.477694,41753.0,41741.0,0.00123121]
[1642642931595,0.00486208,41745.0,41744.0,0.05988]
[1642642931793,1.3537,41753.0,41745.0,0.5]
[1642642931997,1.3537,41753.0,41752.0,0.33455011]
[1642642932195,0.42,41753.0,41752.0,0.54042786]
[1642642933795,0.42,41753.0,41752.0,0.59042786]
[1642642934394,0.61328751,41758.0,41753.0,0.059881]
[1642642934395,0.05988,41756.0,41753.0,0.059881]
[1642642934598,0.42125323,41758.0,41753.0,0.059881]
[1642642934795,0.00042976,41757.0,41753.0,0.119758]
[1642642935029,0.00042976,41757.0,41753.0,0.059881]
[1642642935235,0.00041257,41756.0,41753.0,0.059881]
[1642642935631,0.00039538,41755.0,41753.0,0.059881]
[1642642935832,0.00039538,41755.0,41753.0,0.119759]
[1642642936030,0.00037819,41754.0,41753.0,0.059881]
[1642642938432,0.00037819,41754.0,41753.0,0.060881]
[1642642939584,0.00037819,41754.0,41753.0,0.059881]
[1642642940387,0.00037819,41754.0,41753.0,0.002]
[1642642941689,0.06026519,41754.0,41752.0,0.25587775]
[1642642942087,0.000361,41753.0,41752.0,0.20587775]
[1642642942291,0.000361,41753.0,41752.0,0.20887775]
[1642642942928,0.00121555,41755.0,41753.0,0.95]
[1642642943128,0.00121555,41755.0,41753.0,1.009871]
[1642642943329,0.42,41758.0,41753.0,1.009871]
[1642642943530,0.00121554,41756.0,41753.0,1.009871]
[1642642944029,0.00121554,41756.0,41753.0,1.58400557]
[1642642944430,0.00121554,41756.0,41753.0,1.69400557]
[1642642944629,6.876e-05,41757.0,41753.0,1.29349151]
[1642642944832,0.00128429,41757.0,41754.0,0.107771]
[1642642945029,0.00128429,41757.0,41755.0,0.28410822]
[1642642945329,0.00128429,41757.0,41756.0,0.28716882]
[1642642945529,0.00128429,41757.0,41756.0,0.33716882]